[Event "*** Titled Tuesday Blitz"]
[Site "Chess.com"]
[Date "2020.04.21"]
[Round "2"]
[White "wannabe2700"]
[Black "LizaSolovyova"]
[Result "0-1"]
[WhiteElo "2673"]
[BlackElo "2493"]
[TimeControl "180+1"]
[EndTime "10:16:37 PDT"]
[Termination "LizaSolovyova won by resignation"]

1. b3 {[%clk 0:03:00.9]} 1... e5 {[%clk 0:02:59.5]} 2. Bb2 {[%clk 0:03:01.4]}
2... d6 {[%clk 0:02:59.6]} 3. e3 {[%clk 0:03:01.8]} 3... f5 {[%clk 0:02:59.8]}
4. c4 {[%clk 0:03:02.2]} 4... Nf6 {[%clk 0:03:00]} 5. d4 {[%clk 0:03:02.5]} 5...
e4 {[%clk 0:03:00]} 6. Nh3 {[%clk 0:03:02.4]} 6... c6 {[%clk 0:02:59.6]} 7. Nf4
{[%clk 0:03:01.3]} 7... Be7 {[%clk 0:02:59.2]} 8. d5 {[%clk 0:03:00.5]} 8... O-O
{[%clk 0:02:55.5]} 9. Nc3 {[%clk 0:02:59.9]} 9... g5 {[%clk 0:02:50.6]} 10. Nh5
{[%clk 0:02:55.1]} 10... Qe8 {[%clk 0:02:49.5]} 11. Be2 {[%clk 0:02:50]} 11...
Nbd7 {[%clk 0:02:44.8]} 12. h4 {[%clk 0:02:42.4]} 12... g4 {[%clk 0:02:43.3]}
13. Nf4 {[%clk 0:02:40.4]} 13... Ne5 {[%clk 0:02:43.4]} 14. h5 {[%clk
0:02:30.7]} 14... h6 {[%clk 0:02:42.4]} 15. Qd2 {[%clk 0:02:26.5]} 15... a5
{[%clk 0:02:40.7]} 16. Na4 {[%clk 0:02:18.1]} 16... Bd7 {[%clk 0:02:30.6]} 17.
Nb6 {[%clk 0:02:07.8]} 17... Ra7 {[%clk 0:02:22.2]} 18. c5 {[%clk 0:02:05.3]}
18... Nd3+ {[%clk 0:02:15.6]} 19. Bxd3 {[%clk 0:02:02.4]} 19... exd3 {[%clk
0:02:15.4]} 20. Qxd3 {[%clk 0:01:59.4]} 20... dxc5 {[%clk 0:02:13.3]} 21. Nxd7
{[%clk 0:01:45]} 21... Nxd7 {[%clk 0:02:08]} 22. O-O-O {[%clk 0:01:21.8]} 22...
Bf6 {[%clk 0:02:06]} 23. Bxf6 {[%clk 0:01:06]} 23... Rxf6 {[%clk 0:02:03.7]} 24.
Rhe1 {[%clk 0:01:04.9]} 24... Qe5 {[%clk 0:02:02.4]} 25. Kb1 {[%clk 0:01:04.5]}
25... a4 {[%clk 0:02:02.4]} 26. Ng6 {[%clk 0:00:56.7]} 26... Qe4 {[%clk
0:01:59]} 27. Qxe4 {[%clk 0:00:55.1]} 27... fxe4 {[%clk 0:01:59.9]} 28. bxa4
{[%clk 0:00:47.1]} 28... Rxf2 {[%clk 0:01:57.5]} 29. Nf4 {[%clk 0:00:20.5]}
29... Ne5 {[%clk 0:01:53.2]} 30. dxc6 {[%clk 0:00:20.3]} 30... bxc6 {[%clk
0:01:52.8]} 31. Rd8+ {[%clk 0:00:20.5]} 31... Kf7 {[%clk 0:01:52.7]} 32. Rb8
{[%clk 0:00:17.6]} 32... Rxa4 {[%clk 0:01:52.1]} 33. Rd1 {[%clk 0:00:17.2]}
33... Rb4+ {[%clk 0:01:51.9]} 34. Rxb4 {[%clk 0:00:17.4]} 34... cxb4 {[%clk
0:01:52.8]} 35. Rd4 {[%clk 0:00:15.4]} 35... c5 {[%clk 0:01:50.6]} 36. Rxe4
{[%clk 0:00:15.5]} 36... Kf6 {[%clk 0:01:44.4]} 37. Ng6 {[%clk 0:00:13.4]} 37...
Nxg6 {[%clk 0:01:42.4]} 38. hxg6 {[%clk 0:00:14.3]} 38... Rxg2 {[%clk
0:01:42.9]} 39. Rc4 {[%clk 0:00:09.6]} 39... Kxg6 {[%clk 0:01:43.2]} 40. Rxc5
{[%clk 0:00:09.8]} 40... h5 {[%clk 0:01:42.9]} 41. Rc2 {[%clk 0:00:06.1]} 41...
Rxc2 {[%clk 0:01:41.6]} 42. Kxc2 {[%clk 0:00:07]} 42... h4 {[%clk 0:01:42.1]}
0-1

[Event "*** Titled Tuesday Blitz"]
[Site "Chess.com"]
[Date "2020.04.21"]
[Round "2"]
[White "TheSodabread"]
[Black "r31415"]
[Result "0-1"]
[WhiteElo "1912"]
[BlackElo "2374"]
[TimeControl "180+1"]
[EndTime "10:16:37 PDT"]
[Termination "r31415 won by resignation"]

1. d4 {[%clk 0:03:00.9]} 1... Nf6 {[%clk 0:02:59]} 2. Nc3 {[%clk 0:02:46.7]}
2... e6 {[%clk 0:02:55.1]} 3. e4 {[%clk 0:02:45]} 3... d5 {[%clk 0:02:55]} 4. e5
{[%clk 0:02:44.6]} 4... Nfd7 {[%clk 0:02:55.5]} 5. Nf3 {[%clk 0:02:42.7]} 5...
c5 {[%clk 0:02:55.1]} 6. Bg5 {[%clk 0:02:42.3]} 6... Qb6 {[%clk 0:02:49.3]} 7.
dxc5 {[%clk 0:02:40.9]} 7... Qxb2 {[%clk 0:02:37.2]} 8. Nb5 {[%clk 0:02:08.6]}
8... Na6 {[%clk 0:02:27.7]} 9. Rb1 {[%clk 0:01:38.5]} 9... Qxa2 {[%clk
0:02:25.3]} 10. Ra1 {[%clk 0:01:39]} 10... Qb2 {[%clk 0:02:20]} 11. Rb1 {[%clk
0:01:31.9]} 11... Qa2 {[%clk 0:01:58.3]} 12. Ra1 {[%clk 0:01:32.1]} 12... Qxa1
{[%clk 0:01:58.6]} 13. Qxa1 {[%clk 0:01:31]} 13... Ndxc5 {[%clk 0:01:59.5]} 14.
Nd6+ {[%clk 0:01:23.3]} 14... Bxd6 {[%clk 0:01:58.2]} 15. exd6 {[%clk
0:01:24.2]} 15... f6 {[%clk 0:01:51.8]} 16. Bxf6 {[%clk 0:01:16.9]} 16... gxf6
{[%clk 0:01:51]} 17. Qxf6 {[%clk 0:01:17.8]} 17... Kd7 {[%clk 0:01:41.1]} 18.
Qxh8 {[%clk 0:01:15.6]} 18... Kxd6 {[%clk 0:01:42]} 19. Bxa6 {[%clk 0:00:51.8]}
19... Nxa6 {[%clk 0:01:37.7]} 20. Qxh7 {[%clk 0:00:41.3]} 20... Bd7 {[%clk
0:01:36.4]} 21. h4 {[%clk 0:00:34.8]} 21... Nc5 {[%clk 0:01:36.2]} 22. h5 {[%clk
0:00:32]} 22... Ne4 {[%clk 0:01:34.7]} 23. Qg7 {[%clk 0:00:25.7]} 23... Rc8
{[%clk 0:01:34.7]} 24. Qe5+ {[%clk 0:00:19.9]} 24... Ke7 {[%clk 0:01:34.4]} 25.
h6 {[%clk 0:00:20.8]} 25... Rxc2 {[%clk 0:01:33.3]} 26. Kd1 {[%clk 0:00:20.9]}
26... Ba4 {[%clk 0:01:32.7]} 27. Qxe6+ {[%clk 0:00:16.2]} 27... Kxe6 {[%clk
0:01:31.4]} 28. Nd4+ {[%clk 0:00:17.1]} 28... Kf6 {[%clk 0:01:24.8]} 29. h7
{[%clk 0:00:09.2]} 29... Ra2+ {[%clk 0:01:01.9]} 30. Kc1 {[%clk 0:00:02.9]}
30... Ra1+ {[%clk 0:01:01]} 31. Kb2 {[%clk 0:00:03.8]} 31... Rxh1 {[%clk
0:01:01.4]} 0-1

[Event "*** Titled Tuesday Blitz"]
[Site "Chess.com"]
[Date "2020.04.21"]
[Round "2"]
[White "Spring199"]
[Black "earling8018"]
[Result "1-0"]
[WhiteElo "2383"]
[BlackElo "2042"]
[TimeControl "180+1"]
[EndTime "10:16:38 PDT"]
[Termination "Spring199 won by resignation"]

1. d4 {[%clk 0:03:00.9]} 1... d5 {[%clk 0:02:58.5]} 2. c4 {[%clk 0:03:01.8]}
2... e6 {[%clk 0:02:58.2]} 3. Nc3 {[%clk 0:03:01.5]} 3... Nf6 {[%clk 0:02:58.4]}
4. cxd5 {[%clk 0:03:01.2]} 4... exd5 {[%clk 0:02:57.7]} 5. Bg5 {[%clk
0:03:01.4]} 5... Be7 {[%clk 0:02:58.1]} 6. e3 {[%clk 0:03:01.5]} 6... Nbd7
{[%clk 0:02:57.8]} 7. Bd3 {[%clk 0:03:01.7]} 7... O-O {[%clk 0:02:58.1]} 8. Nge2
{[%clk 0:03:01]} 8... Re8 {[%clk 0:02:57.5]} 9. O-O {[%clk 0:03:00.3]} 9... Nf8
{[%clk 0:02:55.5]} 10. Qc2 {[%clk 0:02:58]} 10... c6 {[%clk 0:02:55.4]} 11. Rad1
{[%clk 0:02:49.2]} 11... Ng6 {[%clk 0:02:46.4]} 12. Nf4 {[%clk 0:02:38.8]} 12...
Ne4 {[%clk 0:02:36.6]} 13. Bxe7 {[%clk 0:02:35.8]} 13... Qxe7 {[%clk 0:02:37.1]}
14. Nfxd5 {[%clk 0:02:23.3]} 14... cxd5 {[%clk 0:02:31.7]} 15. Nxd5 {[%clk
0:02:18.1]} 15... Qg5 {[%clk 0:01:31.8]} 16. Bxe4 {[%clk 0:02:12.3]} 16... Rxe4
{[%clk 0:00:50.4]} 17. Qxe4 {[%clk 0:02:07.2]} 17... Bf5 {[%clk 0:00:49.4]} 18.
Qf3 {[%clk 0:01:58.2]} 18... Bg4 {[%clk 0:00:32]} 19. Qg3 {[%clk 0:01:38.4]}
19... h5 {[%clk 0:00:19.1]} 20. Nc3 {[%clk 0:01:24.8]} 20... h4 {[%clk
0:00:14.9]} 21. f4 {[%clk 0:01:19.5]} 21... Qf5 {[%clk 0:00:10.7]} 22. e4 {[%clk
0:01:12.5]} 22... Qh5 {[%clk 0:00:09.1]} 23. Qf2 {[%clk 0:01:08.9]} 23... Bxd1
{[%clk 0:00:08.3]} 24. Nxd1 {[%clk 0:01:09.5]} 24... Re8 {[%clk 0:00:06]} 25. f5
{[%clk 0:01:08.7]} 25... Ne7 {[%clk 0:00:05.8]} 26. f6 {[%clk 0:01:06.5]} 26...
Ng6 {[%clk 0:00:05.1]} 27. fxg7 {[%clk 0:01:05.7]} 27... Kxg7 {[%clk 0:00:05.1]}
28. Qxf7+ {[%clk 0:01:04.9]} 28... Kh6 {[%clk 0:00:05.6]} 29. Qxe8 {[%clk
0:01:04.4]} 1-0

[Event "*** Titled Tuesday Blitz"]
[Site "Chess.com"]
[Date "2020.04.21"]
[Round "2"]
[White "Matibar"]
[Black "lestri"]
[Result "1-0"]
[WhiteElo "2777"]
[BlackElo "2532"]
[TimeControl "180+1"]
[EndTime "10:16:41 PDT"]
[Termination "Matibar won by checkmate"]

1. e4 {[%clk 0:02:47.3]} 1... d6 {[%clk 0:02:59.6]} 2. d4 {[%clk 0:02:46.8]}
2... Nf6 {[%clk 0:03:00.1]} 3. Nc3 {[%clk 0:02:47.2]} 3... e5 {[%clk 0:03:00.6]}
4. Nf3 {[%clk 0:02:45.9]} 4... Nbd7 {[%clk 0:03:00]} 5. Rg1 {[%clk 0:02:46.3]}
5... g6 {[%clk 0:02:58.6]} 6. g4 {[%clk 0:02:45.7]} 6... Bg7 {[%clk 0:02:58.5]}
7. Be3 {[%clk 0:02:44.3]} 7... c6 {[%clk 0:02:58]} 8. g5 {[%clk 0:02:22.8]} 8...
Nh5 {[%clk 0:02:56.9]} 9. Qd2 {[%clk 0:02:23.2]} 9... Qa5 {[%clk 0:02:56.4]} 10.
O-O-O {[%clk 0:02:17.1]} 10... O-O {[%clk 0:02:50.3]} 11. Kb1 {[%clk 0:02:11.8]}
11... Re8 {[%clk 0:02:48.5]} 12. d5 {[%clk 0:01:18.7]} 12... Bf8 {[%clk
0:02:43.6]} 13. Be2 {[%clk 0:01:07.7]} 13... c5 {[%clk 0:02:21.9]} 14. Nb5
{[%clk 0:01:06.8]} 14... Qd8 {[%clk 0:02:18.9]} 15. c4 {[%clk 0:01:04]} 15... a6
{[%clk 0:02:18.5]} 16. Nc3 {[%clk 0:01:04.2]} 16... Rb8 {[%clk 0:02:18.4]} 17.
Nh4 {[%clk 0:01:03.7]} 17... Nf4 {[%clk 0:02:17.5]} 18. Bxf4 {[%clk 0:01:02.9]}
18... exf4 {[%clk 0:02:17.3]} 19. Qxf4 {[%clk 0:01:03.8]} 19... Ne5 {[%clk
0:02:05.7]} 20. Qd2 {[%clk 0:01:03]} 20... b5 {[%clk 0:02:05.1]} 21. cxb5 {[%clk
0:01:01.8]} 21... axb5 {[%clk 0:02:06]} 22. f4 {[%clk 0:00:41.1]} 22... Nc4
{[%clk 0:01:58.1]} 23. Bxc4 {[%clk 0:00:41]} 23... bxc4 {[%clk 0:01:59]} 24. f5
{[%clk 0:00:38.3]} 24... Qa5 {[%clk 0:01:38.7]} 25. f6 {[%clk 0:00:38]} 25...
Qb4 {[%clk 0:01:30.9]} 26. Rg3 {[%clk 0:00:36]} 26... h6 {[%clk 0:01:29.1]} 27.
gxh6 {[%clk 0:00:34.9]} 27... Bxh6 {[%clk 0:01:26.7]} 28. Qg2 {[%clk 0:00:24.2]}
28... Rb7 {[%clk 0:01:10.7]} 29. Nxg6 {[%clk 0:00:18.3]} 29... fxg6 {[%clk
0:01:06.8]} 30. Rxg6+ {[%clk 0:00:19]} 30... Kh7 {[%clk 0:01:06.8]} 31. Rg1
{[%clk 0:00:17.5]} 31... Re5 {[%clk 0:00:51.5]} 32. Rxh6+ {[%clk 0:00:17.4]}
32... Kxh6 {[%clk 0:00:48.7]} 33. Qg6# {[%clk 0:00:17.4]} 1-0

[Event "*** Titled Tuesday Blitz"]
[Site "Chess.com"]
[Date "2020.04.21"]
[Round "2"]
[White "Agent-JL"]
[Black "GOGIEFF"]
[Result "0-1"]
[WhiteElo "2603"]
[BlackElo "2958"]
[TimeControl "180+1"]
[EndTime "10:16:42 PDT"]
[Termination "GOGIEFF won by resignation"]

1. Nf3 {[%clk 0:03:00.9]} 1... d5 {[%clk 0:02:57.8]} 2. b4 {[%clk 0:02:58.8]}
2... Bg4 {[%clk 0:02:51.3]} 3. Bb2 {[%clk 0:02:58]} 3... Nd7 {[%clk 0:02:50.7]}
4. a3 {[%clk 0:02:53.5]} 4... Ngf6 {[%clk 0:02:49.1]} 5. g3 {[%clk 0:02:52.6]}
5... e6 {[%clk 0:02:38.6]} 6. Bg2 {[%clk 0:02:52.3]} 6... c6 {[%clk 0:02:38.9]}
7. d3 {[%clk 0:02:50.5]} 7... a5 {[%clk 0:02:37.3]} 8. c3 {[%clk 0:02:48.3]}
8... Be7 {[%clk 0:02:31.6]} 9. O-O {[%clk 0:02:48.3]} 9... O-O {[%clk
0:02:30.7]} 10. Nbd2 {[%clk 0:02:48.8]} 10... b5 {[%clk 0:02:23.6]} 11. Qc2
{[%clk 0:02:47.8]} 11... Qb6 {[%clk 0:02:20.1]} 12. e4 {[%clk 0:02:45.8]} 12...
Rfc8 {[%clk 0:02:18.7]} 13. h3 {[%clk 0:02:39.8]} 13... Bh5 {[%clk 0:02:17.5]}
14. Rfb1 {[%clk 0:01:41.2]} 14... c5 {[%clk 0:02:06.9]} 15. bxa5 {[%clk
0:01:31.9]} 15... Qxa5 {[%clk 0:02:05.3]} 16. c4 {[%clk 0:01:20]} 16... bxc4
{[%clk 0:02:01.5]} 17. dxc4 {[%clk 0:01:18.5]} 17... d4 {[%clk 0:01:56.7]} 18.
Ne1 {[%clk 0:01:13]} 18... Qa4 {[%clk 0:01:47.3]} 19. Qxa4 {[%clk 0:01:07.9]}
19... Rxa4 {[%clk 0:01:48.2]} 20. Nd3 {[%clk 0:00:59.3]} 20... Ne8 {[%clk
0:01:48]} 21. Rc1 {[%clk 0:00:52.3]} 21... e5 {[%clk 0:01:44.7]} 22. f4 {[%clk
0:00:44.7]} 22... f6 {[%clk 0:01:44.9]} 23. Bf1 {[%clk 0:00:41.1]} 23... Nd6
{[%clk 0:01:42.2]} 24. Rab1 {[%clk 0:00:35.6]} 24... Bf7 {[%clk 0:01:33.5]} 25.
Nf2 {[%clk 0:00:27]} 25... h5 {[%clk 0:01:33.4]} 26. Rc2 {[%clk 0:00:24.1]}
26... Rb8 {[%clk 0:01:31.4]} 27. Rbc1 {[%clk 0:00:22.4]} 27... g5 {[%clk
0:01:25.2]} 28. f5 {[%clk 0:00:19.5]} 28... Nb6 {[%clk 0:01:24.2]} 29. g4 {[%clk
0:00:19.1]} 29... Nbxc4 {[%clk 0:01:19.3]} 30. Nxc4 {[%clk 0:00:18.7]} 30...
Nxc4 {[%clk 0:01:18.9]} 31. Bxc4 {[%clk 0:00:13.5]} 31... Rxc4 {[%clk
0:01:18.4]} 32. Rxc4 {[%clk 0:00:13.1]} 32... Bxc4 {[%clk 0:01:17.7]} 33. Bxd4
{[%clk 0:00:13.4]} 33... exd4 {[%clk 0:01:17.6]} 34. Rxc4 {[%clk 0:00:13.8]}
34... Rb3 {[%clk 0:01:17.6]} 35. a4 {[%clk 0:00:13.1]} 35... h4 {[%clk
0:01:11.6]} 36. Kf1 {[%clk 0:00:13.1]} 36... Bd6 {[%clk 0:01:08.2]} 37. a5
{[%clk 0:00:13]} 37... Ra3 {[%clk 0:01:07.5]} 38. Nd3 {[%clk 0:00:12.7]} 38...
Rxd3 {[%clk 0:01:06.4]} 0-1

[Event "*** Titled Tuesday Blitz"]
[Site "Chess.com"]
[Date "2020.04.21"]
[Round "2"]
[White "gixfantastix"]
[Black "GuerrieroFromLevant"]
[Result "0-1"]
[WhiteElo "2093"]
[BlackElo "2392"]
[TimeControl "180+1"]
[EndTime "10:16:42 PDT"]
[Termination "GuerrieroFromLevant won by resignation"]

1. e3 {[%clk 0:03:00.9]} 1... Nf6 {[%clk 0:02:57.7]} 2. b3 {[%clk 0:03:00.6]}
2... d5 {[%clk 0:02:57.8]} 3. Bb2 {[%clk 0:03:01.5]} 3... c5 {[%clk 0:02:57.9]}
4. Nf3 {[%clk 0:03:02.4]} 4... Nc6 {[%clk 0:02:58]} 5. Be2 {[%clk 0:03:02.2]}
5... Bg4 {[%clk 0:02:57]} 6. O-O {[%clk 0:03:02]} 6... e6 {[%clk 0:02:56.9]} 7.
d4 {[%clk 0:03:02.2]} 7... Rc8 {[%clk 0:02:55.5]} 8. Nbd2 {[%clk 0:02:49.6]}
8... cxd4 {[%clk 0:02:52.8]} 9. Nxd4 {[%clk 0:02:41]} 9... Nxd4 {[%clk
0:02:51.2]} 10. Bxg4 {[%clk 0:02:10.8]} 10... Nxc2 {[%clk 0:02:47.1]} 11. Rc1
{[%clk 0:02:04.6]} 11... Nb4 {[%clk 0:02:45.9]} 12. Be2 {[%clk 0:01:53.1]} 12...
Nc6 {[%clk 0:02:41.3]} 13. e4 {[%clk 0:01:09.6]} 13... Bb4 {[%clk 0:02:34.2]}
14. exd5 {[%clk 0:01:00]} 14... exd5 {[%clk 0:02:35.1]} 15. Nf3 {[%clk
0:00:55.2]} 15... O-O {[%clk 0:02:33.4]} 16. Bxf6 {[%clk 0:00:51.5]} 16... Qxf6
{[%clk 0:02:31.9]} 17. Qxd5 {[%clk 0:00:51.6]} 17... Rcd8 {[%clk 0:02:28.2]} 18.
Qb5 {[%clk 0:00:45.4]} 18... Ba3 {[%clk 0:02:22.7]} 19. Rcd1 {[%clk 0:00:40.4]}
19... Rde8 {[%clk 0:02:14.8]} 20. Bc4 {[%clk 0:00:36.5]} 20... b6 {[%clk
0:02:10.6]} 21. Rd7 {[%clk 0:00:19.7]} 21... Bc5 {[%clk 0:02:02.2]} 22. Rc7
{[%clk 0:00:15.7]} 22... Ne5 {[%clk 0:01:51.5]} 23. Nxe5 {[%clk 0:00:14.8]}
23... Qxe5 {[%clk 0:01:52.4]} 24. Rxf7 {[%clk 0:00:13]} 24... Rxf7 {[%clk
0:01:52.3]} 25. Qd7 {[%clk 0:00:09.4]} 25... Qe7 {[%clk 0:01:44.8]} 26. Qf5
{[%clk 0:00:04.7]} 26... g6 {[%clk 0:01:36.2]} 27. Bxf7+ {[%clk 0:00:05.6]}
27... Qxf7 {[%clk 0:01:36.8]} 28. Qh3 {[%clk 0:00:03.5]} 28... Rf8 {[%clk
0:01:36.4]} 29. Qh6 {[%clk 0:00:03.3]} 29... Bxf2+ {[%clk 0:01:31.9]} 30. Kh1
{[%clk 0:00:03.8]} 30... Be3 {[%clk 0:01:30.3]} 31. Rxf7 {[%clk 0:00:02.7]}
31... Bxh6 {[%clk 0:01:30.1]} 32. Rxf8+ {[%clk 0:00:02.3]} 32... Bxf8 {[%clk
0:01:29.9]} 33. g3 {[%clk 0:00:03.2]} 33... Kf7 {[%clk 0:01:30.8]} 34. Kg2
{[%clk 0:00:03.5]} 34... Ke6 {[%clk 0:01:31.7]} 35. Kf3 {[%clk 0:00:04.4]} 35...
Kd5 {[%clk 0:01:32.5]} 36. g4 {[%clk 0:00:04.2]} 36... Bh6 {[%clk 0:01:32.5]}
37. h4 {[%clk 0:00:04.1]} 37... Kd4 {[%clk 0:01:32.7]} 38. g5 {[%clk 0:00:04.5]}
38... Bf8 {[%clk 0:01:33]} 39. Kg4 {[%clk 0:00:04.9]} 39... Bd6 {[%clk 0:01:33]}
40. h5 {[%clk 0:00:05.8]} 40... Ke4 {[%clk 0:01:32.7]} 41. h6 {[%clk 0:00:05.9]}
41... Bf4 {[%clk 0:01:32.2]} 0-1

[Event "*** Titled Tuesday Blitz"]
[Site "Chess.com"]
[Date "2020.04.21"]
[Round "2"]
[White "RD4ever"]
[Black "agus_k"]
[Result "0-1"]
[WhiteElo "2829"]
[BlackElo "2591"]
[TimeControl "180+1"]
[EndTime "10:16:43 PDT"]
[Termination "agus_k won by resignation"]

1. e4 {[%clk 0:03:00.9]} 1... c5 {[%clk 0:02:59.4]} 2. Nf3 {[%clk 0:03:00.9]}
2... d6 {[%clk 0:02:58.4]} 3. d4 {[%clk 0:03:01.4]} 3... cxd4 {[%clk 0:02:57.6]}
4. Nxd4 {[%clk 0:03:02.3]} 4... Nf6 {[%clk 0:02:53.6]} 5. Nc3 {[%clk 0:03:02.4]}
5... a6 {[%clk 0:02:52.4]} 6. Bd3 {[%clk 0:03:02.2]} 6... e6 {[%clk 0:02:48.6]}
7. f4 {[%clk 0:03:01.6]} 7... Nc6 {[%clk 0:02:47]} 8. Nxc6 {[%clk 0:02:50]} 8...
bxc6 {[%clk 0:02:46.8]} 9. e5 {[%clk 0:02:50.9]} 9... Nd5 {[%clk 0:02:45.4]} 10.
Ne4 {[%clk 0:02:43.7]} 10... Be7 {[%clk 0:02:41.8]} 11. Qg4 {[%clk 0:02:35.5]}
11... O-O {[%clk 0:02:38.9]} 12. O-O {[%clk 0:02:32.4]} 12... Nb4 {[%clk
0:02:35.7]} 13. exd6 {[%clk 0:02:20.1]} 13... Bxd6 {[%clk 0:02:30.4]} 14. Rd1
{[%clk 0:01:58.1]} 14... Qb6+ {[%clk 0:02:27.5]} 15. Kh1 {[%clk 0:01:57.4]}
15... f5 {[%clk 0:02:19.6]} 16. Qh3 {[%clk 0:01:28]} 16... Nxd3 {[%clk 0:02:17]}
17. Qxd3 {[%clk 0:01:21.4]} 17... Be7 {[%clk 0:02:14.5]} 18. Nc3 {[%clk
0:01:12.8]} 18... a5 {[%clk 0:02:12.6]} 19. Be3 {[%clk 0:01:10.7]} 19... c5
{[%clk 0:02:09.3]} 20. Na4 {[%clk 0:01:03.3]} 20... Qc6 {[%clk 0:02:09]} 21. Qc4
{[%clk 0:00:54.7]} 21... Bb7 {[%clk 0:02:09]} 22. Rd2 {[%clk 0:00:54.7]} 22...
Rfd8 {[%clk 0:01:58.1]} 23. Rg1 {[%clk 0:00:54.4]} 23... Rxd2 {[%clk 0:01:54.4]}
24. Bxd2 {[%clk 0:00:55.3]} 24... Rd8 {[%clk 0:01:53]} 25. Be3 {[%clk
0:00:51.3]} 25... Rd1 {[%clk 0:01:52.4]} 26. Qe2 {[%clk 0:00:45.2]} 26... Rxg1+
{[%clk 0:01:48.1]} 27. Bxg1 {[%clk 0:00:46.1]} 27... Qxa4 {[%clk 0:01:48.2]} 28.
Qxe6+ {[%clk 0:00:46.1]} 28... Kf8 {[%clk 0:01:47.3]} 29. Qxf5+ {[%clk
0:00:46.3]} 29... Ke8 {[%clk 0:01:46]} 30. Qh5+ {[%clk 0:00:29.1]} 30... g6
{[%clk 0:01:44.4]} 31. Qxh7 {[%clk 0:00:29]} 31... Qe4 {[%clk 0:01:44.4]} 32.
Qh3 {[%clk 0:00:27.2]} 32... Qxc2 {[%clk 0:01:44]} 33. b3 {[%clk 0:00:20.1]}
33... Qxa2 {[%clk 0:01:41.9]} 34. Qg4 {[%clk 0:00:20.4]} 34... Qc2 {[%clk
0:01:38.1]} 35. h3 {[%clk 0:00:18.7]} 35... Qf5 {[%clk 0:01:34.5]} 36. Qg3
{[%clk 0:00:17.1]} 36... Qe4 {[%clk 0:01:34.8]} 37. Kh2 {[%clk 0:00:17.2]} 37...
Bh4 {[%clk 0:01:30.1]} 38. Qg4 {[%clk 0:00:17.2]} 38... Be7 {[%clk 0:01:21.5]}
39. Bf2 {[%clk 0:00:17.4]} 39... Bd6 {[%clk 0:01:19.6]} 40. Be3 {[%clk
0:00:15.2]} 40... Qxe3 {[%clk 0:01:15.7]} 41. Qxg6+ {[%clk 0:00:15.6]} 41... Kd7
{[%clk 0:01:16.2]} 0-1

[Event "*** Titled Tuesday Blitz"]
[Site "Chess.com"]
[Date "2020.04.21"]
[Round "2"]
[White "Gabix_94"]
[Black "ahappypawn"]
[Result "1-0"]
[WhiteElo "2816"]
[BlackElo "2355"]
[TimeControl "180+1"]
[EndTime "10:16:45 PDT"]
[Termination "Gabix_94 won by resignation"]

1. d4 {[%clk 0:03:00.4]} 1... d5 {[%clk 0:02:59.6]} 2. c4 {[%clk 0:03:00.3]}
2... c6 {[%clk 0:02:59.8]} 3. Nc3 {[%clk 0:03:00.4]} 3... Nf6 {[%clk 0:02:59.9]}
4. Nf3 {[%clk 0:03:00.6]} 4... dxc4 {[%clk 0:03:00.4]} 5. e4 {[%clk 0:03:00.3]}
5... b5 {[%clk 0:02:59.4]} 6. Be2 {[%clk 0:03:00.9]} 6... e6 {[%clk 0:02:46.9]}
7. O-O {[%clk 0:02:59.3]} 7... Be7 {[%clk 0:02:46.2]} 8. a4 {[%clk 0:02:58.3]}
8... b4 {[%clk 0:02:27.6]} 9. e5 {[%clk 0:02:56.9]} 9... bxc3 {[%clk 0:02:24]}
10. exf6 {[%clk 0:02:56]} 10... Bxf6 {[%clk 0:02:13.2]} 11. bxc3 {[%clk
0:02:54.3]} 11... O-O {[%clk 0:02:12.7]} 12. Bxc4 {[%clk 0:02:54.2]} 12... c5
{[%clk 0:02:13]} 13. Ba3 {[%clk 0:02:48.9]} 13... Nd7 {[%clk 0:02:06.1]} 14.
dxc5 {[%clk 0:02:40]} 14... Qc7 {[%clk 0:01:20.5]} 15. c6 {[%clk 0:02:35.1]}
15... Nb6 {[%clk 0:00:53.6]} 16. Bxf8 {[%clk 0:02:30.5]} 16... Nxc4 {[%clk
0:00:53.7]} 17. Bc5 {[%clk 0:02:16.1]} 17... Qxc6 {[%clk 0:00:53.7]} 18. Bd4
{[%clk 0:02:09.6]} 18... e5 {[%clk 0:00:53.2]} 19. Be3 {[%clk 0:02:08.4]} 19...
Nxe3 {[%clk 0:00:45.7]} 20. fxe3 {[%clk 0:02:09.3]} 20... Qxc3 {[%clk
0:00:38.9]} 21. Qd5 {[%clk 0:01:59.6]} 21... Qxe3+ {[%clk 0:00:26.8]} 22. Kh1
{[%clk 0:01:58.7]} 22... Rb8 {[%clk 0:00:27.7]} 23. Rae1 {[%clk 0:01:56.2]}
23... Qb6 {[%clk 0:00:24.9]} 24. Nxe5 {[%clk 0:01:50.5]} 24... Be6 {[%clk
0:00:25.1]} 25. Qe4 {[%clk 0:01:43.8]} 25... Qa6 {[%clk 0:00:22.6]} 26. Nc6
{[%clk 0:01:41.7]} 26... Re8 {[%clk 0:00:14.9]} 27. Nd4 {[%clk 0:01:33.4]} 27...
h6 {[%clk 0:00:11.6]} 28. Nxe6 {[%clk 0:01:19.5]} 28... Rxe6 {[%clk 0:00:12.5]}
29. Qa8+ {[%clk 0:01:17.9]} 29... Kh7 {[%clk 0:00:13]} 30. Qd5 {[%clk
0:01:13.9]} 30... Qxa4 {[%clk 0:00:09.2]} 31. Rxe6 {[%clk 0:01:12.5]} 31... fxe6
{[%clk 0:00:09.9]} 32. Qxe6 {[%clk 0:01:13.4]} 32... Qb5 {[%clk 0:00:09.3]} 33.
Qe4+ {[%clk 0:01:13.4]} 33... Kg8 {[%clk 0:00:08.6]} 34. Rc1 {[%clk 0:01:13.6]}
34... a5 {[%clk 0:00:07.9]} 35. Rc8+ {[%clk 0:01:13.1]} 35... Kf7 {[%clk
0:00:08]} 36. Rc7+ {[%clk 0:01:12.8]} 36... Kf8 {[%clk 0:00:07]} 37. Qa8+ {[%clk
0:01:09.6]} 37... Qe8 {[%clk 0:00:05.3]} 38. Rc8 {[%clk 0:01:10]} 1-0